Cogmind - Beta 13 @@@ ROGUE MODE // 2024.06.18 @ 20:11:50 Player: ILikeVoltron Result: Self-destructed Performance ------------- Evolutions (3) 1500 Regions Visited (4) 800 Robots Destroyed (74) 370 Value Destroyed (1915) 1915 Prototype IDs (3) 60 Alien Tech Used (0) 0 Bonus (56) 56 TOTAL SCORE: 4701 Bonus ------- High Alert Combat Kills 56 Cogmind --------- Core Integrity 700/700 Matter 266/300 Energy 100/100 System Corruption 0% Temperature Cool (0) Movement Rolling (100) Location -7/Factory Parts ------- > --- POWER (1) -------- (None) > --- PROPULSION (4) --- Aluminum Leg Compact Wheel > --- UTILITY (5) ------ Medium Storage Unit Machine Analyzer Improved Targeting Computer > --- WEAPON (3) ------- Heavy Mace > --- INVENTORY (10) --- Cooled Ion Engine Medium Storage Unit Sensor Array Improved Sensor Array Improved Terrain Scanner Improved EM Shotgun Rocket Launcher Hammer Heavy Mace Peak State ------------ > --- POWER ------------ Cooled Ion Engine > --- PROPULSION ------- Aluminum Leg Carbon-fiber Leg Compact Wheel > --- UTILITY ---------- Medium Storage Unit Machine Analyzer Transport Network Coupler Heavy Armor Plating > --- WEAPON ----------- Improved EM Shotgun Improved EM Shotgun > --- INVENTORY -------- Cooled Ion Engine Compact Wheel High-capacity Matter Pod Sensor Array Improved Terrain Scanner Heavy Assault Rifle Rocket Launcher Rocket Launcher Rocket Launcher Hammer [Rating: 26] Favorites ----------- Power Cooled Ion Engine Engine Cooled Ion Engine Propulsion Aluminum Leg Treads Light Treads Leg Aluminum Leg Wheel Compact Wheel Utility Transport Network Coupler Device Sensor Array Storage Small Storage Unit Processor Transport Network Coupler Protection Heavy Armor Plating Weapon Improved EM Shotgun Energy Gun Improved EM Shotgun Ballistic Gun Light Assault Rifle Ballistic Cannon Light Cannon Launcher Rocket Launcher Special Weapon Mining Laser Impact Weapon Hammer Build | -11 -10 -9 -8 -7 ------- Run | Yrd Mat Mat Mat Fac Slots Evolved 6 | . . 2 2 2 Power . | . . . . . Propulsion 2 | . . 1 . 1 Utility 3 | . . 1 2 . Weapon 1 | . . . . 1 Parts Attached 50 | 1 11 24 14 . Power 4 | . 1 3 . . Engine 4 | . 1 3 . . Core . | . . . . . Reactor . | . . . . . Propulsion 13 | . 3 6 4 . Treads 2 | . 1 1 . . Leg 6 | . . 4 2 . Wheel 5 | . 2 1 2 . Hover . | . . . . . Flight . | . . . . . Utility 13 | 1 1 6 5 . Device 5 | 1 . 3 1 . Storage 2 | . . 2 . . Processor 3 | . 1 . 2 . Hackware . | . . . . . Protection 3 | . . 1 2 . Artifact . | . . . . . Weapon 20 | . 6 9 5 . Energy Gun 5 | . . 4 1 . Energy Cannon . | . . . . . Ballistic Gun 6 | . 2 3 1 . Ballistic Cannon 1 | . 1 . . . Launcher 4 | . 2 . 2 . Special Weapon 1 | . 1 . . . Impact Weapon 3 | . . 2 1 . Slashing Weapon . | . . . . . Piercing Weapon . | . . . . . Special Melee Weapon . | . . . . . Unidentified Prototypes 3 | . . 3 . . Parts Lost 18 | . 7 1 9 1 Power 3 | . 2 . 1 . Propulsion 5 | . 2 . 2 1 Utility 3 | . . 1 2 . Weapon 7 | . 3 . 4 . Highest Loss Streak 6 | . 6 1 3 1 To Critical Strikes . | . . . . . Average Slot Usage (%) 90 | . 91 95 87 53 Engine 8 | . 11 7 8 . Treads 2 | . 3 3 . . Leg 15 | . 9 16 17 15 Wheel 9 | . 9 11 9 7 Device 6 | . 9 10 1 . Storage 10 | . 14 11 9 7 Processor 12 | . 4 11 17 15 Protection 3 | . . . 7 . Energy Gun 7 | . . 9 9 . Ballistic Gun 8 | . 19 8 4 . Launcher 1 | . 1 . 2 . Impact Weapon 1 | . . 3 . 7 Naked Turns . | . . . . . Heaviest Build 95 | 12 13 95 40 13 Greatest Support 25 | 20 20 20 25 16 Greatest Overweight (x) 5 | . 1 5 3 . Average Overweight (x) . | . . . 1 . Largest Inventory Capacity 25 | 8 8 25 10 10 Average Capacity 9 | 8 8 8 10 10 Most Carried 14 | 8 8 14 10 9 Average Carried 8 | 7 6 8 9 9 Final Capacity 10 | 8 8 10 10 10 Final Carried 10 | 8 7 10 9 9 Class Distribution -------------------- 55% | Mutant 41% | Scavenger-Mutant Dominant Class ---------------- Mutant | -10/Materials Scavenger-Mutant | -9/Materials Mutant | -8/Materials Scavenger-Mutant | -7/Factory Resources | -11 -10 -9 -8 -7 ----------- Run | Yrd Mat Mat Mat Fac Matter Collected 1568 | 246 346 571 405 . Remotely . | . . . . . Salvage Created 2359 | 155 346 1002 856 . Parts 137 | 11 26 51 49 . Haulers Intercepted 6 | . 1 3 2 . Recyclers Shooed 2 | . 1 1 . . Parts Field Recycled . | . . . . . Retrieved Matter . | . . . . . Parts Self-Destructed . | . . . . . Prevented . | . . . . . Kills | -11 -10 -9 -8 -7 ------- Run | Yrd Mat Mat Mat Fac Combat Hostiles Destroyed 45 | . 9 15 21 . Melee 1 | . . 1 . . Guns 26 | . 4 14 8 . Cannons 2 | . 2 . . . AOE 14 | . 3 . 11 . Classes Destroyed 14 | 2 6 3 3 . Worker 4 | . 2 . 2 . Builder 6 | . . 3 3 . Tunneler 3 | 3 . . . . Hauler 6 | . 1 3 2 . Recycler 4 | 1 1 2 . . Operator 1 | . 1 . . . Watcher 5 | . 1 2 2 . Swarmer 9 | . 3 3 3 . Grunt 26 | . 6 8 12 . Brawler 1 | . . 1 . . Sentry 5 | . . 3 2 . Specialist 2 | . . . 2 . Hunter 1 | . . . 1 . Heavy 1 | . . . 1 . Best Kill Streak 9 | 2 5 6 9 . Combat Bots Only 6 | . 3 4 6 . Max Kills in Single Turn 2 | 1 2 1 2 . Gunslinging . | . . . . . Exploded 2 | . 1 . 2 . Melee 1 | . . 1 . . Uniques/NPCs Destroyed . | . . . . . Combat | -11 -10 -9 -8 -7 -------- Run | Yrd Mat Mat Mat Fac Hostile Shots Fired 276 | . 97 64 114 1 Missed 68 | . 24 12 32 . Damage Taken 2963 | . 853 659 1433 18 Core 465 | . 217 133 115 . Absorbed by Shields . | . . . . . Core Remaining (%) 64 | 100 13 66 79 . Volleys Fired 176 | 9 46 60 61 . Largest 2 | 2 2 2 2 . Hottest 100 | 40 100 90 90 . Shots Fired 291 | 18 74 104 95 . Gun 246 | 18 54 104 70 . Cannon 7 | . 7 . . . Launcher 33 | . 8 . 25 . Special 5 | . 5 . . . Kinetic 184 | 18 61 82 23 . Thermal 5 | . 5 . . . Explosive 33 | . 8 . 25 . Electromagnetic 69 | . . 22 47 . Robot Hit Streak 11 | 6 9 8 11 . Robot Miss Streak 4 | 3 3 3 4 . Penetration Max . | . . . . . Secondary Targets 3 | . 1 . 2 . Max Gunslinging Chain 1 | . 1 . 1 . Shots Hit Robots 233 | 11 50 87 85 . Core Hits 140 | 6 27 35 72 . Critical Kills 4 | . . 3 1 . Critical Parts Destroyed 1 | . . . 1 . Critical Strikes 5 | . . 3 2 . Destroy 2 | . . 2 . . Smash 3 | . . 1 2 . Melee Attacks 30 | . . 25 5 . Impact 30 | . . 25 5 . Slashing . | . . . . . Piercing . | . . . . . Sneak Attacks 5 | . . 5 . . Combat Hostiles . | . . . . . Follow-up Attacks . | . . . . . Damage Inflicted 5645 | 117 1047 1416 3065 . Guns 2400 | 117 415 924 944 . Cannons 107 | . 107 . . . Explosions 2422 | . 429 58 1935 . Melee 620 | . . 434 186 . Ramming . | . . . . . Kinetic 1523 | 117 522 624 260 . Thermal 332 | . 96 58 178 . Explosive 2186 | . 429 . 1757 . Electromagnetic 984 | . . 300 684 . Impact 620 | . . 434 186 . Slashing . | . . . . . Piercing . | . . . . . Highest Corruption . | . . . . . Average Corruption . | . . . . . Corruption Purged . | . . . . . Corruption Blocked . | . . . . . Overload Shots . | . . . . . Overflow Damage 221 | . 6 81 134 . Projectiles . | . . . . . Explosions 105 | . 6 . 99 . Melee 116 | . . 81 35 . Knockbacks 3 | . 2 1 . . Impact 1 | . . 1 . . Kinetic 2 | . 2 . . . Secondary . | . . . . . Self-Inflicted Damage 92 | . . 35 57 . Shots 3 | . . 1 2 . Rammed . | . . . . . Targets Rammed . | . . . . . Kicked . | . . . . . Crushed . | . . . . . Highest Temperature 212 | . 121 45 212 . Average Temperature 55 | . 38 11 89 . Received Heat Transfer 1248 | . 453 282 504 9 Siege Activations . | . . . . . Robots Corrupted 1 | . . . 1 . Combat Hostiles 1 | . . . 1 . Parts Fried 6 | . . 3 3 . Impact Corruptions 5 | . . 4 1 . Robots Melted . | . . . . . Combat Hostiles . | . . . . . Parts Melted . | . . . . . Heat Transferred 400 | . 200 100 100 . Parts Sabotaged . | . . . . . Parts Stolen . | . . . . . Parts Stripped . | . . . . . Power Chain Reactions 2 | . . 1 1 . Alert | -11 -10 -9 -8 -7 ------- Run | Yrd Mat Mat Mat Fac Peak Influence 463 | 20 331 437 463 140 Initial 140 | . 13 139 1 140 Average 177 | 11 196 185 183 139 Maximum Alert Level 2 | . 1 2 2 . Low Security (%) 59 | 100 47 56 58 100 Level 1 34 | . 52 33 33 . Level 2 6 | . . 9 7 . Level 3 . | . . . . . Level 4 . | . . . . . Level 5 . | . . . . . High Security . | . . . . . Max Security . | . . . . . Squads Dispatched 7 | . 1 2 4 . Investigation 2 | . . 1 1 . Extermination . | . . . . . Reinforcement 5 | . 1 1 3 . Assault . | . . . . . Garrison . | . . . . . Intercept . | . . . . . Searches Triggered . | . . . . . Construction Impeded . | . . . . . Haulers Reinforced . | . . . . . Active Scanning Responses . | . . . . . Cargo Convoy Interrupts . | . . . . . Stealth | -11 -10 -9 -8 -7 --------- Run | Yrd Mat Mat Mat Fac Distress Signals 6 | . 2 1 3 . Communications Jammed . | . . . . . Distress Signals . | . . . . . Times Spotted 70 | . 16 19 33 2 Peak Tracking Total 6 | . 5 6 6 3 Tactical Retreats 2 | . 1 1 . . Traps | -11 -10 -9 -8 -7 ------- Run | Yrd Mat Mat Mat Fac Traps Triggered 1 | . 1 . . . Indirectly . | . . . . . Trap Hack Attempts . | . . . . . Triggered . | . . . . . Disarmed . | . . . . . Reprogrammed . | . . . . . Reused . | . . . . . Traps Extracted . | . . . . . Installed . | . . . . . Triggered . | . . . . . Machines | -11 -10 -9 -8 -7 ---------- Run | Yrd Mat Mat Mat Fac Machines Disabled 4 | . 3 . 1 . Max in Single Turn 1 | . 1 . 1 . Machines Repaired . | . . . . . Machines Dismantled . | . . . . . Machines Sabotaged . | . . . . . Overloaded Fab Kills . | . . . . . Hacking | -11 -10 -9 -8 -7 --------- Run | Yrd Mat Mat Mat Fac Machines Accessed 10 | . 2 4 4 . Terminals 9 | . 2 4 3 . Fabricators . | . . . . . Repair Stations . | . . . . . Recycling Units . | . . . . . Scanalyzers 1 | . . . 1 . Garrison Access . | . . . . . Total Hacks 24 | . 3 14 7 . Successful 16 | . 1 9 6 . Failed 8 | . 2 5 1 . Catastrophic 4 | . 1 2 1 . Database Lockouts . | . . . . . Manual 9 | . . 5 4 . Terminals 22 | . 3 14 5 . Fabricators . | . . . . . Repair Stations . | . . . . . Recycling Units . | . . . . . Scanalyzers 2 | . . . 2 . Garrison Access . | . . . . . Terminal Hacks 12 | . 1 9 2 . Record 1 | . . 1 . . Part Schematic 1 | . . . 1 . Branch Access Points 1 | . 1 . . . Alert Level 3 | . . 3 . . Unreport Threat 2 | . . 2 . . Locate Traps 1 | . . 1 . . Investigation Status 1 | . . 1 . . Zone Layout 2 | . . 1 1 . Fabricator Hacks . | . . . . . Repair Station Hacks . | . . . . . Recycling Unit Hacks . | . . . . . Scanalyzer 2 | . . . 2 . Insert Component 1 | . . . 1 . Analyze 1 | . . . 1 . Garrison Access Hacks . | . . . . . Unauthorized Hacks 2 | . . . 2 . Terminals 2 | . . . 2 . Assimilate 1 | . . . 1 . Botnet 1 | . . . 1 . Fabricators . | . . . . . Repair Stations . | . . . . . Recycling Units . | . . . . . Scanalyzers . | . . . . . Garrison Access . | . . . . . Data Cores Recovered 1 | . 1 . . . Used . | . . . . . Hacking Detections 7 | . 2 4 1 . Full Trace Events 1 | . . . 1 . Feedback Events . | . . . . . Feedback Blocked . | . . . . . Robot Schematics Acquired . | . . . . . Robots Built . | . . . . . Authchips . | . . . . . Time . | . . . . . Total Robot Build Rating . | . . . . . Part Schematics Acquired 2 | . . . 2 . Parts Built . | . . . . . Authchips . | . . . . . Time . | . . . . . Total Part Build Rating . | . . . . . Parts Repaired . | . . . . . Time . | . . . . . Parts Recycled . | . . . . . Recycled Matter . | . . . . . Retrieved Matter . | . . . . . Retrieved Components . | . . . . . Parts Scanalyzed 1 | . . . 1 . Part Schematics Acquired 1 | . . . 1 . Parts Damaged . | . . . . . Bothacking | -11 -10 -9 -8 -7 ------------ Run | Yrd Mat Mat Mat Fac Used RIF Installer . | . . . . . Robots Hacked . | . . . . . Non-combat . | . . . . . Combat . | . . . . . Robot Hacks Applied . | . . . . . Relay Couplers Released . | . . . . . Fabnet Peak Effective % . | . . . . . Robots Rewired . | . . . . . Allies Hacked . | . . . . . Hacks Repelled . | . . . . . Allies | -11 -10 -9 -8 -7 -------- Run | Yrd Mat Mat Mat Fac Total Allies . | . . . . . Largest Group . | . . . . . Highest-Rated Group . | . . . . . Highest-Rated Ally . | . . . . . Total Orders . | . . . . . Ally Attacks . | . . . . . Total Damage . | . . . . . Kills . | . . . . . Allies Corrupted . | . . . . . Allies Melted . | . . . . . Intel | -11 -10 -9 -8 -7 ------- Run | Yrd Mat Mat Mat Fac Robot Analysis Total . | . . . . . Derelict Logs Recovered . | . . . . . Drone Launches . | . . . . . Drone Recoveries . | . . . . . Exploration | -11 -10 -9 -8 -7 ------------- Run | Yrd Mat Mat Mat Fac Turns Passed 2293 | 99 361 909 851 73 Spaces Moved 1190 | 57 192 466 402 73 Core . | . . . . . Treads 130 | . 33 97 . . Legs 524 | 57 44 192 231 . Wheels 536 | . 115 177 171 73 Hover . | . . . . . Flight . | . . . . . Fastest Speed 95 | 120 95 100 100 100 Average Speed 134 | 120 112 128 161 100 Slowest Speed 260 | 120 190 190 260 100 Overloaded Moves . | . . . . . Propulsion Burnouts . | . . . . . Robots Hopped . | . . . . . Cave-ins Triggered . | . . . . . Exploration Rate (%) 22 | 4 32 39 32 3 Regions Visited 4 Branch Regions . Pre-discovered Areas . | . . . . . Known Exits Taken . | . . . . . Unknown Exits Taken 4 | 1 1 1 1 . Scrap Searched . | . . . . . Spaces Dug 2 | . . 2 . . Terrain Destroyed 115 | . 7 5 103 . Melee 2 | . . 2 . . Projectile . | . . . . . AOE 113 | . 7 3 103 . Terrain Rammed . | . . . . . Walls Destroyed . | . . . . . Machines Disabled . | . . . . . Actions | -11 -10 -9 -8 -7 --------- Run | Yrd Mat Mat Mat Fac Total 1553 | 72 259 651 498 73 Wait 41 | . 1 34 6 . Move 1186 | 56 191 465 401 73 Hop . | . . . . . Pick Up 35 | 4 7 20 4 . Fast Attach 14 | 1 1 7 5 . Attach 14 | . 7 2 5 . Detach 4 | . 1 . 3 . Swap 22 | . 3 15 4 . Drop 31 | 2 2 23 4 . Fire 176 | 9 46 60 61 . Melee 30 | . . 25 5 . Ram . | . . . . . Kick . | . . . . . Crush . | . . . . . Escape Stasis . | . . . . . Rewire . | . . . . . Trap . | . . . . . Miscellaneous . | . . . . . Route ------- -11/Scrapyard -10/Materials (discovered 2 exits: *Mat / Min) -9/Materials (discovered 2 exits: *Mat / [*Min]) -8/Materials -7/Factory History --------- Turn | Location | Event 7 | -11/Scrapyard | Discovered new exit (range 3) 100 | -11/Scrapyard | Entered Materials 106 | -10/Materials | Identified exit to Mines 302 | -10/Materials | Core integrity fell below 50% 322 | -10/Materials | Lost 6 parts (1p2n3w) 333 | -10/Materials | Build established: Mutant 395 | -10/Materials | Core integrity fell below 20% 437 | -10/Materials | Discovered new exit (range 16) 461 | -10/Materials | Entered another Materials area 461 | -9/Materials | Evolved 2 slots: Propulsion x1, Utility x1 835 | -9/Materials | Discovered new exit (range 8) 921 | -9/Materials | Build established: Scavenger-Mutant 1347 | -9/Materials | Discovered new exit (range 16) 1370 | -9/Materials | Entered another Materials area 1370 | -8/Materials | Evolved 2 slots: Utility x2 1773 | -8/Materials | Build established: Mutant 2120 | -8/Materials | Lost 3 parts (1n2w) 2194 | -8/Materials | Discovered new exit (range 16) 2221 | -8/Materials | Entered Factory 2221 | -7/Factory | Evolved 2 slots: Propulsion x1, Weapon x1 2230 | -7/Factory | Lost 3 parts (1p1u1w) 2294 | -7/Factory | Self-destructed Last Messages --------------- 02202_ U-05 Engineer lays Concrete. 02203_ Critical hit (Burn: +37). 02203_ U-05 Engineer builds a Wall. 02204_ Acquired 50 matter. 02205_ R-06 Scavenger collects Lgt. Ion Engine. 02206_ K-01 Serf collects debris. 02207_ The unstable cave ceiling collapses. 02209_ K-01 Serf collects debris. 02209_ R-06 Scavenger collects Wheel. 02217_ U-05 Engineer lays Concrete. PARAMETERS=PROPULSION+1,WEAPON+1 LOCATION=UNKNOWN GOAL=ESCAPE 02230_ >> Machine Analyzer network decryption results: 02230_ Garrison Access x1 02281_ >> Machine Analyzer network decryption results: 02281_ DSF Access x1 02290_ >> Machine Analyzer network decryption results: 02290_ Terminal x1 02291_ Aluminum Leg destroyed. Map ----- +----------------------------------------------------+ | ???????????????????????????????????????# ##### | | ???????????????????????????????????????# #???# | | ???????????????????????????????????????# #???# | | ???????????????????????????????????????# #???# | | ???????????????????????????????????????# #???# | | ??????????????????????????????########## ###?# | | ??????????????????????????? #?# | | ??????????????????????????? #?# | | ??????????????????????????? #?# | | ??????????????????????????? #?# | | ???????????????????????????? #?# | | ???????????????????????????? ##########?# | | ???????????????????????????? ???????????# | | ????????????????????????????? ???????????# | | ????????????????????????????? ???????????# | | ?????????????????????????????? #??????????# | | ?????????????????????????????? #??????????# | | ??????????????????#???????????? #??????????# | | ??????????????????# ????????????# #??????????# | | ??????????????????# ????######### #??????????# | | ??????????????????# ???# # #??????????# | | ??????????????????+ ???# # #??????????# | | ??????????????????# ??# # ############ | | ??????????????????# ??# # # | | ??????????????????# ?# # # | | ??????????????????# ?#@ """" # # | | ??????????????????# # """" # # | | ??????????????????# # """" # # | | ??????????????????# + """" # # | | ??????????????????# # """" + + | | ?????????????????# # """" # # | | ?????????????????#T ?# # # | | ?????????????????## ?# # # | | ??????????????????# ??######### # | | ????????????????? ????????? # | | ???????????????? ????????? ############ | | ??????????????? ???????? #??????????? | | "????????????? ??????? #??????????? | | "???????????? ?????? #??????????? | | ?????????????######???????########+####??????????? | | ?????????????????????????????????????????????????? | | ?????????????????????????????????????????????????? | | ?????????????????""""?""""???????????????????????? | | ?????????????????""""?""""???????????????????????? | | ?????????????????""""?""""???????????????????????? | | ?????????????????""""?""""???????????????????????? | | ?????????????????????????????????????????????????? | | ?????????????????""""?""""???????????????????????? | | ?????????????????""""?""""???????????????????????? | | ?????????????????""""?""""???????????????????????? | +----------------------------------------------------+ Best States ------------- Heat Dissipation 34 Energy Generation 14 Energy Capacity 280 Matter Stores 300 Matter Capacity 300 Sight Range 16 Robot Scan Range 14 Terrain Scan Range 16 Terrain Scan Density 10 Armor Coverage 600 Evasion (%) 55 Targeting Accuracy 6 Recoil Reduction 1 Item Schematics ----------------- Carbon-fiber Leg | -8/Materials | Hacked Imp. EM Shotgun | -8/Materials | Scanalyzed Robot Schematics ------------------ None Fabricated ------------ Nothing Alien Tech Used ----------------- None Achievements -------------- None Challenges ------------ None Game ------ Seed ProcessingDrainedAxe Manual? 0 Play Time 00:31:39 Cumulative 131.5 hours Start 2024.06.18 @ 16:38:22 End 2024.06.18 @ 20:11:50 Sessions 3 Manual Loads 0 Difficulty Rogue Special Mode None Game No. 209 Rogue 205 Adventurer 0 Explorer 4 Win Type - Total 0 Types 0/0/0/0/0/0/0/0/0 Lore% 26 Gallery% 46 Achievement% 34 Wizard Run 0 Options --------- Layout 2 ASCII 0 Keyboard 1 Movement Arrows Keybinds 0 Fullscreen 1 Font 32/SmallcapsGlow Map View 130x44 Zoom Use 0% Tactical HUD 1 Map Filters NONE Filters NONE Steam 1 RUN: 65d81c9f-8508-4ff1-ad57-44db92338cb5